bitfinex/quotes_SOLUSD_20241118
["timestamp","ask_amount","ask_price","bid_price","bid_amount"]
[1731909402236,168.08122714,242.0,241.91,12.01492714]
[1731909402453,3.07188708,241.99,241.93,7.88122714]
[1731909402758,3.07188708,241.98,241.93,7.88122714]
[1731909402935,3.07188708,241.97,241.93,7.88122714]
[1731909403135,3.07188708,241.96,241.93,7.88122714]
[1731909403337,4.1314,242.05,241.95,7.88122714]
[1731909403643,10.9516958,242.04,241.95,7.88122714]
[1731909403962,3.07046866,242.03,241.95,7.88122714]
[1731909404271,3.07046866,242.02,241.96,4.1329]
[1731909404471,3.07046866,242.01,241.96,4.1329]
[1731909404759,3.07046866,242.0,241.96,4.1329]
[1731909404938,7.88122714,242.04,241.96,4.1329]
[1731909405139,3.06870588,242.03,241.96,4.1329]
[1731909405360,7.88122714,242.04,241.96,4.1329]
[1731909405361,3.06870588,242.02,241.96,4.1329]
[1731909405571,0.12549,242.04,241.96,14.4651]
[1731909405738,0.12549,242.01,241.94,7.88122714]
[1731909405939,3.06714879,242.0,241.94,7.88122714]
[1731909406234,7.88122714,242.02,241.94,7.88122714]
[1731909406235,0.12549,242.01,241.94,7.88122714]
[1731909406439,3.06565155,242.0,241.94,7.88122714]
[1731909406666,3.0655472,241.99,241.94,7.88122714]
[1731909406866,24.027864,242.04,241.96,7.88122714]
[1731909407063,0.12549,242.02,241.96,7.88122714]
[1731909407236,3.06556603,242.01,241.96,7.88122714]
[1731909407442,3.06549877,242.0,241.96,7.88122714]
[1731909407657,0.12549,242.02,241.96,7.88122714]
[1731909407865,164.3314,242.05,241.98,7.88122714]
[1731909407866,3.06472233,242.01,241.98,7.88122714]
[1731909408157,160.2,242.05,241.98,7.88122714]
[1731909408368,3.06341767,242.04,241.98,7.88122714]
[1731909408543,3.06341767,242.03,241.98,7.88122714]
[1731909408875,168.08122714,242.06,241.98,7.88122714]
[1731909409162,0.12549,242.04,241.98,7.88122714]
[1731909409336,0.25098,242.05,241.98,7.88122714]
[1731909409541,3.06235706,242.04,241.98,7.88122714]
[1731909409739,0.25098,242.05,241.98,7.88122714]
[1731909409939,3.06236375,242.04,241.98,7.88122714]
[1731909410135,0.25098,242.05,241.98,7.88122714]
[1731909410368,3.06236193,242.04,241.99,7.88122714]
[1731909410572,0.25098,242.05,241.99,7.88122714]
[1731909410876,8.13220714,242.05,241.98,12.01362714]
[1731909411034,160.2,242.09,242.04,7.88122714]
[1731909411238,160.2,242.09,241.98,14.4638]
[1731909411239,3.0616101,242.07,242.05,7.88122714]
[1731909411463,160.2,242.1,242.05,7.88122714]
[1731909411666,3.06059651,242.09,242.05,7.88122714]
[1731909411834,3.06059651,242.08,242.05,7.88122714]
[1731909412041,3.06059651,242.07,242.05,7.88122714]
[1731909412267,160.2,242.1,242.04,7.88122714]
[1731909412451,3.05910546,242.09,242.04,7.88122714]
[1731909412653,0.34465462,242.09,242.04,7.88122714]
[1731909412963,160.2,242.11,242.05,7.88122714]
[1731909413160,3.0593024,242.1,242.05,7.88122714]
[1731909413344,0.09367462,242.1,242.05,7.88122714]
[1731909413553,0.09367462,242.1,242.06,7.88122714]
[1731909413983,0.12549,242.09,242.06,7.88122714]
[1731909414267,0.12549,242.09,242.06,12.29083315]
[1731909415066,6.46162746,242.15,242.08,12.29083315]
[1731909415369,3.05625668,242.14,242.1,12.29083315]
[1731909415547,4.01420036,242.16,242.1,12.29083315]
[1731909415753,3.05517975,242.15,242.1,12.29083315]
[1731909416053,4.01420036,242.16,242.1,12.29083315]
[1731909416255,0.25098,242.14,242.1,12.29083315]
[1731909416453,0.25098,242.14,242.06,16.42193315]
[1731909416653,12.29083315,242.13,242.06,16.42193315]
[1731909416863,0.25098,242.12,242.06,16.42193315]
[1731909417643,90.35098,242.01,241.76,19.2666]
[1731909417972,44.027864,241.89,241.78,12.29083315]
[1731909418146,24.027864,241.87,241.78,12.29083315]
[1731909418547,0.25098,241.91,241.84,12.29083315]
[1731909419370,0.25098,241.91,241.84,26.76303315]
[1731909419539,0.25098,241.92,241.86,12.29083315]
[1731909419742,30.0,241.87,241.86,12.29083315]
[1731909420465,24.027864,241.94,241.86,12.29083315]
[1731909420671,0.25098,241.97,241.89,12.29083315]
[1731909420846,30.0,241.9,241.89,12.29083315]
[1731909421557,30.0,241.9,241.89,16.42493315]
[1731909422067,26.276,242.02,241.89,26.76013315]
[1731909422068,12.29083315,242.02,241.89,26.76013315]
[1731909422257,12.29083315,242.04,241.96,12.29083315]
[1731909422452,3.05212096,242.03,241.96,12.29083315]
[1731909422758,160.2,242.05,241.96,12.29083315]
[1731909422965,3.05340548,242.04,241.96,12.29083315]
[1731909423158,0.09367462,242.04,241.96,12.29083315]
[1731909423544,160.2,242.05,241.98,12.29083315]
[1731909423745,12.29083315,242.06,241.98,12.29083315]
[1731909425273,0.25098,242.05,241.99,4.1324]
[1731909425956,172.49083315,242.08,242.0,12.29083315]
[1731909426154,12.29083315,242.08,242.0,12.29083315]
[1731909426466,12.29083315,242.1,242.0,12.29083315]
[1731909426672,160.2,242.11,242.02,12.29083315]
[1731909427059,160.2,242.11,242.03,14.4609]
[1731909427447,12.29083315,242.12,242.04,12.29083315]
[1731909427645,12.29083315,242.14,242.06,12.29083315]
[1731909427861,3.05409678,242.13,242.06,12.29083315]
[1731909428072,12.29083315,242.14,242.06,12.29083315]
[1731909428275,3.0540351,242.13,242.06,12.29083315]
[1731909428462,12.29083315,242.14,242.06,12.29083315]
[1731909429348,12.29083315,242.14,242.07,14.4585]
[1731909429647,0.12549,242.12,242.07,14.4585]
[1731909430050,12.29083315,242.16,242.08,12.29083315]
[1731909430276,12.29083315,242.18,242.1,12.29083315]
[1731909430482,3.05081306,242.17,242.1,12.29083315]
[1731909430661,19.7216,242.22,242.14,12.29083315]
[1731909430857,12.29083315,242.2,242.12,12.29083315]
[1731909431094,12.29083315,242.16,242.08,12.29083315]
[1731909431274,0.09367462,242.15,242.09,4.1306]
[1731909431594,172.49083315,242.18,242.1,12.29083315]
[1731909431763,172.49083315,242.18,242.09,14.4573]
[1731909431764,160.2,242.18,242.12,12.29083315]
[1731909431963,0.12549,242.17,242.12,12.29083315]
[1731909432186,0.12549,242.17,242.1,12.29083315]
[1731909432376,172.49083315,242.18,242.1,12.29083315]
[1731909433480,172.49083315,242.18,242.11,14.4561]
[1731909433676,0.12549,242.17,242.11,14.4561]
[1731909433888,0.12549,242.15,242.11,10.3258]
[1731909435088,0.12549,242.15,242.06,19.2719]
[1731909435089,0.34465462,242.11,242.01,14.4621]
[1731909435259,0.12549,242.08,242.01,14.4621]
[1731909436094,0.12549,242.04,242.01,10.3301]
[1731909436562,160.2,242.16,242.03,7.5686]
[1731909436765,0.25098,242.1,242.02,12.29083315]
[1731909437073,12.29083315,242.09,242.01,14.4621]
[1731909437265,0.12549,242.08,242.01,14.4621]
[1731909437578,0.25098,242.08,242.01,14.4621]
[1731909439277,0.25098,242.08,242.02,12.29083315]
[1731909439594,0.12549,242.1,242.04,12.29083315]
[1731909439795,24.027864,242.11,242.04,12.29083315]
[1731909441628,0.25098,242.11,242.05,14.4597]
[1731909441971,0.25098,242.11,242.06,12.29083315]
[1731909442178,0.12549,242.11,242.06,12.29083315]
[1731909442498,0.12549,242.11,242.08,12.29083315]
[1731909442998,0.25098,242.13,242.08,12.29083315]
[1731909443715,0.25098,242.13,242.09,4.1306]
[1731909444193,0.25098,242.13,242.09,14.4573]
[1731909444406,3.04642453,242.15,242.12,12.29083315]
[1731909445780,0.25098,242.14,242.13,4.13]
[1731909449488,0.25098,242.14,242.09,10.3267]
[1731909449489,0.25098,242.12,242.09,26.74803315]
[1731909452882,0.12549,242.12,242.11,12.29083315]
[1731909453081,172.49083315,242.21,242.11,12.29083315]
[1731909453290,160.2,242.23,242.16,12.29083315]
[1731909453493,160.2,242.22,242.16,12.29083315]
[1731909453688,0.09367462,242.21,242.16,12.29083315]
[1731909454577,0.21916462,242.17,242.16,16.42023315]
[1731909454780,0.34465462,242.17,242.16,16.42023315]
[1731909457886,32.29083315,242.25,242.16,26.74393315]
[1731909458084,160.2,242.3,242.22,12.29083315]
[1731909458395,3.05493557,242.29,242.22,12.29083315]
[1731909458591,0.09367462,242.31,242.22,12.29083315]
[1731909458788,3.0537725,242.3,242.22,12.29083315]
[1731909458989,3.0537725,242.29,242.22,12.29083315]
[1731909459293,16.41763315,242.32,242.23,14.449]
[1731909459504,44.027864,242.31,242.23,14.449]
[1731909459711,0.09367462,242.3,242.23,14.449]
[1731909460008,0.21916462,242.26,242.23,14.449]
[1731909460194,0.21916462,242.24,242.23,14.449]
[1731909460505,0.34465462,242.24,242.23,14.449]
[1731909460799,0.09367462,242.28,242.23,14.449]
[1731909460989,23.87055862,242.28,242.23,14.449]
[1731909462407,0.09367462,242.28,242.23,14.449]
[1731909462589,160.2,242.3,242.26,12.29083315]
[1731909462791,164.3263,242.35,242.28,12.29083315]
[1731909463001,160.2,242.34,242.28,12.29083315]
[1731909463182,4.1263,242.35,242.28,12.29083315]
[1731909463999,12.29083315,242.36,242.28,12.29083315]
[1731909464207,12.29083315,242.36,242.28,26.73673315]
[1731909464508,4.126,242.37,242.3,12.29083315]
[1731909464682,0.09367462,242.37,242.3,12.29083315]
[1731909464896,12.29083315,242.38,242.3,12.29083315]
[1731909465098,176.61633315,242.4,242.32,12.29083315]
[1731909465400,160.2,242.39,242.32,12.29083315]
[1731909466309,20.0,242.38,242.32,16.41743315]
[1731909466912,0.21916462,242.36,242.32,16.41743315]
[1731909467207,0.21916462,242.34,242.32,16.41743315]
[1731909467388,0.12549,242.33,242.32,16.41743315]
[1731909469283,160.2,242.4,242.32,26.73433315]
[1731909469489,1.7056,242.44,242.39,12.29083315]
[1731909470514,1.7056,242.44,242.41,12.29083315]
[1731909471112,0.09367462,242.43,242.41,12.29083315]
[1731909471310,1.7056,242.44,242.41,12.29083315]
[1731909471698,0.7056,242.44,242.41,12.29083315]
[1731909472013,24.027864,242.43,242.41,12.29083315]
[1731909472215,24.027864,242.43,242.33,10.3163]
[1731909472399,0.09367462,242.4,242.33,10.3163]
[1731909472715,0.09367462,242.38,242.33,26.73373315]
[1731909473491,0.09367462,242.36,242.31,12.29083315]
[1731909473819,0.09367462,242.36,242.29,16.41793315]
[1731909474204,0.09367462,242.36,242.29,12.29083315]
[1731909474409,20.09367462,242.36,242.29,12.29083315]
[1731909474597,0.09367462,242.32,242.28,14.4459]
[1731909474795,0.21916462,242.32,242.28,14.4459]
[1731909474994,0.21916462,242.3,242.28,10.3185]
[1731909476412,0.21916462,242.3,242.28,22.60933315]
[1731909477814,0.21916462,242.3,242.28,26.73673315]
[1731909478599,20.0,242.36,242.28,26.73673315]
[1731909478806,20.0,242.36,242.31,12.29083315]
[1731909479423,160.2,242.37,242.33,12.29083315]
[1731909479596,0.09367462,242.36,242.33,12.29083315]
[1731909480490,4.1255,242.4,242.34,4.1264]
[1731909480491,24.027864,242.4,242.34,4.1264]
[1731909480716,12.29083315,242.41,242.34,4.1264]
[1731909481307,0.09367462,242.4,242.34,4.1264]
[1731909481631,0.09367462,242.4,242.35,12.29083315]
[1731909482015,23.776884,242.41,242.37,12.29083315]
[1731909482199,0.7056,242.44,242.37,12.29083315]
[1731909482523,0.09367462,242.43,242.37,12.29083315]
[1731909482821,0.7056,242.44,242.39,12.29083315]
[1731909483023,0.09367462,242.43,242.37,12.29083315]
[1731909483224,0.09367462,242.4,242.33,26.73393315]
[1731909483424,24.12153862,242.4,242.33,26.73393315]
[1731909483932,23.776884,242.4,242.33,26.73393315]
[1731909484108,23.12153862,242.4,242.33,26.73393315]
[1731909484925,23.12153862,242.4,242.31,12.29083315]
[1731909484926,4.1255,242.4,242.31,12.29083315]
[1731909485227,160.2,242.39,242.31,12.29083315]
[1731909485428,160.2,242.39,242.33,12.29083315]
[1731909486231,24.12153862,242.38,242.33,16.41733315]
[1731909490426,24.12153862,242.38,242.33,26.73383315]
[1731909491227,30.0,242.36,242.33,26.73383315]
[1731909491830,24.12153862,242.35,242.31,12.29083315]
[1731909492334,24.12153862,242.33,242.31,12.29083315]
[1731909492630,24.12153862,242.33,242.31,16.41763315]
[1731909492829,30.0,242.34,242.31,26.73493315]
[1731909493028,30.0,242.34,242.33,12.29083315]
[1731909493237,54.12153862,242.34,242.33,12.29083315]
[1731909493826,24.12153862,242.33,242.31,26.73493315]
[1731909494162,30.0,242.32,242.31,26.73493315]
[1731909495819,24.12153862,242.33,242.31,26.73493315]
[1731909500626,24.12153862,242.33,242.31,10.3173]
[1731909500827,54.12153862,242.32,242.31,10.3173]
[1731909502234,30.0,242.32,242.31,10.3173]
[1731909503246,24.12153862,242.38,242.31,10.3173]
[1731909503425,24.12153862,242.36,242.31,10.3173]
[1731909503627,24.12153862,242.34,242.31,10.3173]
[1731909503827,24.12153862,242.32,242.31,10.3173]
[1731909505642,0.25098,242.38,242.31,22.60813315]
[1731909505850,0.25098,242.38,242.35,12.29083315]
[1731909506342,0.09367462,242.37,242.35,12.29083315]
[1731909507654,0.09367462,242.37,242.35,26.73253315]
[1731909508853,0.09367462,242.37,242.36,18.89211353]
[1731909509020,0.7056,242.44,242.35,26.73253315]
[1731909509218,0.7056,242.44,242.43,12.29083315]
[1731909509439,0.7056,242.44,242.43,16.41573315]
[1731909510931,6.62970313,242.56,242.43,16.41573315]
[1731909510932,184.0515,242.63,242.44,20.0]
[1731909511129,160.2,242.62,242.56,12.29083315]
[1731909512217,24.027864,242.61,242.56,12.29083315]
[1731909514069,0.09367462,242.6,242.56,12.29083315]
[1731909518055,24.12153862,242.58,242.43,43.432507]
[1731909518261,24.12153862,242.53,242.46,12.29083315]
[1731909518630,24.12153862,242.51,242.44,12.29083315]
[1731909519950,28.24503862,242.51,242.44,12.29083315]
[1731909520455,28.24503862,242.51,242.46,12.29083315]
[1731909520941,28.24503862,242.51,242.41,4.1251]
[1731909521132,188.44503862,242.51,242.44,12.29083315]
[1731909521454,188.44503862,242.51,242.46,12.29083315]
[1731909522539,188.44503862,242.51,242.44,12.29083315]
[1731909523036,188.44503862,242.51,242.5,12.29083315]
[1731909523239,160.2,242.51,242.5,24.5816663]
[1731909523428,164.3226,242.57,242.5,24.5816663]
[1731909523635,164.3222,242.59,242.56,12.29083315]
[1731909523828,30.0,242.57,242.52,12.29083315]
[1731909524440,160.2,242.58,242.52,12.29083315]
[1731909524642,160.2,242.59,242.56,12.29083315]
[1731909524845,19.7299,242.63,242.58,12.29083315]
[1731909525037,30.0,242.59,242.52,26.72253315]
[1731909525538,0.09367462,242.62,242.52,26.72253315]
[1731909525743,0.09367462,242.62,242.61,12.29083315]
[1731909526053,24.027864,242.62,242.61,12.29083315]
[1731909526459,19.7299,242.63,242.61,12.29083315]
[1731909526460,178.7016,242.7,242.61,16.41243315]
[1731909526751,7.6821,242.72,242.69,12.29083315]
[1731909526943,30.0,242.7,242.64,12.29083315]
[1731909527259,160.2,242.75,242.69,12.29083315]
[1731909527460,160.2,242.75,242.74,12.29083315]
[1731909527755,164.3182,242.83,242.74,12.29083315]
[1731909527961,164.3182,242.83,242.79,12.29083315]
[1731909527962,160.2,242.82,242.79,12.29083315]
[1731909528162,160.03363889,242.81,242.77,12.29083315]
[1731909528343,160.03363889,242.81,242.79,12.29083315]
[1731909528543,160.03193889,242.91,242.79,12.29083315]
[1731909528859,155.91523889,242.9,242.83,12.29083315]
[1731909529250,12.29083315,242.92,242.83,12.29083315]
[1731909529455,168.20607204,242.92,242.85,12.29083315]
[1731909529654,155.91523889,242.92,242.85,12.29083315]
[1731909529867,4.1164,242.93,242.85,12.29083315]
[1731909530054,168.20607204,242.94,242.85,12.29083315]
[1731909530242,175.45021943,242.95,242.86,19.53498054]
[1731909530442,155.91523889,242.94,242.86,19.53498054]
[1731909530850,155.91523889,242.94,242.88,19.53498054]
[1731909531051,155.91523889,242.95,242.88,19.53498054]
[1731909531467,0.09367462,242.93,242.88,19.53498054]
[1731909531776,179.94310289,242.94,242.88,19.53498054]
[1731909531941,155.91523889,242.94,242.88,19.53498054]
[1731909532141,155.91523889,242.95,242.88,19.53498054]
[1731909532554,160.03123889,242.96,242.88,19.53498054]
[1731909532764,19.53498054,242.95,242.86,19.53498054]
[1731909532945,0.09367462,242.94,242.86,19.53498054]
[1731909533343,0.09367462,242.87,242.78,8.0578]
[1731909533660,226.01523889,242.95,242.75,14.4179]
[1731909533661,23.776884,242.82,242.75,14.4179]
[1731909534967,0.25098,242.83,242.76,23.65408054]
[1731909535172,19.78596054,242.83,242.76,4.1191]
[1731909535383,19.53498054,242.78,242.71,8.0578]
[1731909535871,19.53498054,242.76,242.71,8.0578]
[1731909536046,19.53498054,242.74,242.69,10.301]
[1731909536693,24.12153862,242.73,242.66,19.53498054]
[1731909536846,24.12153862,242.73,242.67,19.53498054]
[1731909537045,0.34465462,242.73,242.67,19.53498054]
[1731909537246,0.34465462,242.73,242.66,14.4233]
[1731909537469,24.12153862,242.73,242.66,14.4233]
[1731909537772,24.12153862,242.73,242.67,19.53498054]
[1731909538146,23.776884,242.75,242.69,19.53498054]
[1731909538654,23.776884,242.75,242.68,4.1206]
[1731909539147,0.34465462,242.74,242.68,4.1206]
[1731909541047,0.34465462,242.74,242.7,19.53498054]
[1731909542368,0.34465462,242.74,242.68,19.53498054]
[1731909542667,0.34465462,242.72,242.66,29.83738054]
[1731909544577,0.34465462,242.7,242.64,19.53498054]
[1731909546669,0.09367462,242.68,242.62,19.53498054]
[1731909546879,0.34465462,242.66,242.6,33.96168054]
[1731909547070,23.776884,242.67,242.64,19.53498054]
[1731909547670,20.81921472,242.93,242.6,14.4267]
[1731909547671,155.91523889,242.76,242.66,19.53498054]
[1731909547874,4.1193,242.76,242.69,19.53498054]
[1731909548374,23.65478054,242.74,242.65,19.53498054]
[1731909548576,155.91523889,242.77,242.67,19.53498054]
[1731909548577,23.65428054,242.76,242.67,19.53498054]
[1731909549082,44.027864,242.75,242.67,19.53498054]
[1731909549473,4.24539,242.72,242.65,19.53498054]
[1731909549678,0.09367462,242.69,242.65,19.53498054]
[1731909549998,0.09367462,242.67,242.65,19.53498054]
[1731909550673,0.09367462,242.67,242.63,19.53498054]
[1731909550887,23.87055862,242.67,242.63,19.53498054]
[1731909551793,23.87055862,242.67,242.61,19.53498054]
[1731909552393,23.87055862,242.67,242.61,12.23325151]
[1731909552779,23.87055862,242.67,242.61,16.35495151]
[1731909553095,23.87055862,242.67,242.64,12.23325151]
[1731909553988,27.0314,242.78,242.66,12.23325151]
[1731909553989,12.23325151,242.74,242.66,12.23325151]
[1731909554300,0.12549,242.73,242.66,12.23325151]
[1731909554677,0.09367462,242.72,242.66,12.23325151]
[1731909555081,23.99604862,242.72,242.66,12.23325151]
[1731909555379,4.1195,242.75,242.65,4.1211]
[1731909555380,4.118,242.84,242.71,12.23325151]
[1731909555579,12.23325151,242.83,242.74,12.23325151]
[1731909556188,0.09367462,242.82,242.74,12.23325151]
[1731909556499,4.21197462,242.82,242.74,12.23325151]
[1731909556672,0.09367462,242.8,242.73,4.1197]
[1731909556878,20.09367462,242.8,242.74,12.23325151]
[1731909557075,155.91523889,242.84,242.76,12.23325151]
[1731909557277,12.23325151,242.94,242.83,12.23325151]
[1731909557596,12.23325151,242.96,242.86,12.23325151]
[1731909558578,20.0,242.95,242.86,12.23325151]
[1731909558771,20.0,242.95,242.86,16.35075151]
[1731909559071,12.23325151,242.96,242.88,12.23325151]
[1731909559584,12.23325151,242.98,242.88,12.23325151]
[1731909560309,19.53160303,242.96,242.87,19.53160303]
[1731909560681,182.48513889,242.99,242.86,10.2939]
[1731909560682,0.09367462,242.93,242.86,10.2939]
[1731909560880,20.09367462,242.93,242.86,10.2939]
[1731909561114,20.09367462,242.93,242.86,14.4114]
[1731909561279,0.09367462,242.91,242.86,14.4114]
[1731909561601,0.21916462,242.91,242.86,14.4114]
[1731909564614,4.116,242.96,242.86,14.4114]
[1731909564615,160.2,243.27,243.03,0.1]
[1731909564794,19.53160303,243.23,243.13,19.53160303]
[1731909564982,160.2,243.22,243.13,19.53160303]
[1731909565595,160.2,243.22,243.03,11.10795923]
[1731909565596,179.73160303,243.27,243.17,19.53160303]
[1731909565904,183.0506,243.32,243.23,19.53160303]
[1731909566083,160.2,243.31,243.23,19.53160303]
[1731909566283,160.2,243.31,243.25,19.53160303]
[1731909566807,19.53160303,243.38,243.3,19.53160303]
[1731909567003,160.2,243.37,243.3,19.53160303]
[1731909567199,160.2,243.37,243.32,19.53160303]
[1731909567506,160.2,243.37,243.34,19.53160303]
[1731909568611,20.0,243.36,243.34,19.53160303]
[1731909568906,19.53160303,243.37,243.27,19.53160303]
[1731909569081,19.53160303,243.37,243.13,0.1]
[1731909569082,19.53160303,243.3,243.21,19.53160303]
[1731909569279,0.09367462,243.28,243.21,19.53160303]
[1731909569699,19.53160303,243.36,243.27,19.53160303]
[1731909570085,19.53160303,243.38,243.29,19.53160303]
[1731909570285,19.53160303,243.4,243.31,19.53160303]
[1731909570504,19.53160303,243.4,243.24,19.53160303]
[1731909570505,19.53160303,243.42,243.33,19.53160303]
[1731909570886,0.09367462,243.41,243.33,19.53160303]
[1731909571088,19.53160303,243.42,243.33,19.53160303]
[1731909571699,0.09367462,243.41,243.33,19.53160303]
[1731909571891,20.0,243.41,243.33,19.53160303]
[1731909572291,20.0,243.41,243.31,19.53160303]
[1731909572292,0.09367462,243.38,243.31,19.53160303]
[1731909572808,0.09367462,243.38,243.33,19.53160303]
[1731909573005,0.09367462,243.39,243.37,19.53160303]
[1731909573205,70.81474811,243.52,243.37,19.53160303]
[1731909573414,160.2,243.51,243.43,19.53160303]
[1731909573591,164.3067,243.5,243.36,33.91330303]
[1731909573914,4.1066,243.51,243.37,23.776884]
[1731909574223,4.1066,243.51,243.5,19.53160303]
[1731909574404,26.7162,243.59,243.5,19.53160303]
[1731909574405,164.3059,243.55,243.5,19.53160303]
[1731909574588,4.1059,243.55,243.52,19.53160303]
[1731909574791,4.1059,243.55,243.48,19.53160303]
[1731909574996,4.2059,243.55,243.48,19.53160303]
[1731909575213,0.09367462,243.54,243.48,19.53160303]
[1731909575517,0.09367462,243.52,243.48,19.53160303]
[1731909575725,20.09367462,243.52,243.48,19.53160303]
[1731909576415,0.34465462,243.49,243.48,19.53160303]
[1731909576603,0.12549,243.49,243.47,19.53160303]
[1731909576806,0.12549,243.51,243.47,19.53160303]
[1731909577120,164.3064,243.53,243.47,19.53160303]
[1731909577616,0.09367462,243.52,243.47,19.53160303]
[1731909577816,19.53160303,243.56,243.49,19.53160303]
[1731909577817,4.1058,243.56,243.49,19.53160303]
[1731909578120,4.1058,243.56,243.51,19.53160303]
[1731909578714,0.09367462,243.55,243.49,19.53160303]
[1731909579010,0.34465462,243.5,243.42,19.53160303]
[1731909579206,0.21916462,243.48,243.42,19.53160303]
[1731909579514,4.1057,243.57,243.47,19.53160303]
[1731909579695,20.0,243.55,243.5,19.53160303]
[1731909580434,4.1057,243.57,243.49,19.53160303]
[1731909580435,20.0,243.53,243.49,19.53160303]
[1731909580617,0.09367462,243.52,243.47,19.53160303]
[1731909580810,0.09367462,243.45,243.38,19.53160303]
[1731909581013,19.62527765,243.45,243.38,19.53160303]
[1731909581524,0.21916462,243.4,243.32,19.53160303]
[1731909581733,0.21916462,243.38,243.3,23.64170303]
[1731909581907,0.21916462,243.38,243.3,19.53160303]
[1731909582108,0.21916462,243.36,243.3,19.53160303]
[1731909583714,0.21916462,243.36,243.2,0.1]
[1731909583715,0.21916462,243.32,243.25,19.53160303]
[1731909584326,0.21916462,243.3,243.23,29.80980303]
[1731909584727,0.21916462,243.3,243.25,19.53160303]
[1731909584924,19.75076765,243.28,243.19,19.53160303]
[1731909585139,20.0,243.27,243.19,19.53160303]
[1731909585432,19.53160303,243.25,243.18,4.1121]
[1731909585733,0.21916462,243.24,243.17,29.81240303]
[1731909586111,0.21916462,243.24,243.17,33.92470303]
[1731909586526,20.21916462,243.26,243.2,19.53160303]
[1731909587228,19.53160303,243.3,243.22,19.53160303]
[1731909587527,19.53160303,243.32,243.24,19.53160303]
[1731909587728,0.09367462,243.31,243.22,19.53160303]
[1731909587932,0.09367462,243.31,243.24,19.53160303]
[1731909588123,19.53160303,243.34,243.26,19.53160303]
[1731909588508,0.09367462,243.33,243.24,19.53160303]
[1731909588746,20.09367462,243.33,243.24,19.53160303]
[1731909588925,0.09367462,243.29,243.22,19.53160303]
[1731909589236,20.09367462,243.29,243.22,19.53160303]
[1731909589411,0.12549,243.28,243.22,19.53160303]
[1731909589608,0.25098,243.28,243.22,19.53160303]
[1731909591432,0.12549,243.26,243.15,20.0]
[1731909591618,0.25098,243.26,243.18,19.53160303]
[1731909592541,0.09367462,243.25,243.18,19.53160303]
[1731909592838,0.34465462,243.25,243.2,19.53160303]
[1731909593337,0.34465462,243.2,243.1,19.53160303]
[1731909593635,19.53160303,243.24,243.1,19.53160303]
[1731909593636,20.34465462,243.17,243.1,19.53160303]
[1731909594221,20.12549,243.17,243.1,19.53160303]
[1731909594424,160.2,243.22,243.1,19.53160303]
[1731909594425,20.25098,243.26,243.15,19.53160303]
[1731909594616,19.53160303,243.27,243.19,19.53160303]
[1731909595712,20.12549,243.27,243.19,23.64350303]
[1731909595927,20.25098,243.27,243.19,23.64350303]
[1731909596337,0.09367462,243.26,243.19,23.64350303]
[1731909596529,0.12549,243.25,243.19,19.53160303]
[1731909597339,0.12549,243.25,243.21,19.53160303]
[1731909597722,0.12549,243.25,243.19,19.53160303]
[1731909598248,0.12549,243.25,243.21,19.53160303]
[1731909598537,0.12549,243.25,243.18,19.53160303]
[1731909598744,0.12549,243.25,243.2,19.53160303]
[1731909600214,0.09367462,243.24,243.18,19.53160303]
[1731909600538,0.21916462,243.2,243.14,19.53160303]
[1731909602438,0.25098,243.22,243.16,19.53160303]
[1731909602646,20.0,243.23,243.16,19.53160303]
[1731909602844,0.25098,243.23,243.18,19.53160303]
[1731909603945,0.09367462,243.24,243.18,19.53160303]
[1731909604129,4.1099,243.31,243.2,19.53160303]
[1731909604444,19.53160303,243.32,243.22,19.53160303]
[1731909604746,19.53160303,243.32,243.24,19.53160303]
[1731909605127,19.53160303,243.34,243.26,19.53160303]
[1731909605839,7.8524,243.35,243.28,19.53160303]
[1731909606044,23.64040303,243.38,243.28,19.53160303]
[1731909606223,19.53160303,243.36,243.28,23.64190303]
[1731909606418,19.53160303,243.38,243.3,19.53160303]
[1731909606949,0.09367462,243.39,243.3,19.53160303]
[1731909607148,0.25098,243.39,243.3,19.53160303]
[1731909607332,19.53160303,243.42,243.29,7.7619]
[1731909607530,19.53160303,243.44,243.36,19.53160303]
[1731909607733,23.63920303,243.45,243.36,19.53160303]
[1731909608124,19.53160303,243.45,243.36,19.53160303]
[1731909608334,19.53160303,243.43,243.36,19.53160303]
[1731909608643,19.53160303,243.39,243.33,10.2739]
[1731909608949,0.34465462,243.38,243.33,10.2739]
[1731909609330,20.0,243.39,243.33,10.2739]
[1731909609735,19.53160303,243.4,243.33,10.2739]
[1731909610229,20.09367462,243.41,243.33,14.3835]
[1731909610443,0.09367462,243.41,243.34,19.53160303]